Cogmind - Beta 13 @@@ ROGUE MODE // 2024.04.23 @ 20:59:45 Player: Faunarr Result: Destroyed by Y-45 Defender with Beam Rifle Performance ------------- Evolutions (1) 500 Regions Visited (2) 400 Robots Destroyed (35) 175 Value Destroyed (544) 544 Prototype IDs (2) 40 Alien Tech Used (0) 0 Bonus (0) 0 TOTAL SCORE: 1659 Bonus ------- None Cogmind --------- Core Integrity 0/400 Matter 295/300 Energy 64/100 System Corruption 0% Temperature Warm (126) Movement Treading (480) Ox4 Location -9/Materials Parts ------- > --- POWER (1) -------- (None) > --- PROPULSION (3) --- Light Treads > --- UTILITY (3) ------ Huge Storage Unit > --- WEAPON (2) ------- Beam Rifle > --- INVENTORY (25) --- Ion Engine Light Ion Engine High-capacity Storage Unit Visual Processing Unit Sensor Array Signal Interpreter Peak State ------------ > --- POWER ------------ Heavy Ion Engine > --- PROPULSION ------- Light Treads Light Treads Light Treads > --- UTILITY ---------- Improved Heat Sink Huge Storage Unit Light Armor Plating > --- WEAPON ----------- Medium Laser Beam Cannon > --- INVENTORY -------- Ion Engine Light Ion Engine Light Ion Engine High-capacity Storage Unit Visual Processing Unit Sensor Array Signal Interpreter Improved Medium Laser [Rating: 14] Favorites ----------- Power Ion Engine Engine Ion Engine Propulsion Light Treads Treads Light Treads Utility Huge Storage Unit Device Improved Heat Sink Storage Huge Storage Unit Protection Light Armor Plating Weapon Medium Laser Energy Gun Medium Laser Energy Cannon Beam Cannon Ballistic Gun Assault Rifle Build | -11 -10 -9 ------- Run | Yrd Mat Mat Slots Evolved 2 | . . 2 Power . | . . . Propulsion 1 | . . 1 Utility 1 | . . 1 Weapon . | . . . Parts Attached 20 | 7 4 9 Power 3 | 1 . 2 Engine 3 | 1 . 2 Core . | . . . Reactor . | . . . Propulsion 5 | 2 . 3 Treads 5 | 2 . 3 Leg . | . . . Wheel . | . . . Hover . | . . . Flight . | . . . Utility 6 | 1 4 1 Device 2 | . 2 . Storage 3 | 1 2 . Processor . | . . . Hackware . | . . . Protection 1 | . . 1 Artifact . | . . . Weapon 6 | 3 . 3 Energy Gun 3 | 1 . 2 Energy Cannon 1 | . . 1 Ballistic Gun 2 | 2 . . Ballistic Cannon . | . . . Launcher . | . . . Special Weapon . | . . . Impact Weapon . | . . . Slashing Weapon . | . . . Piercing Weapon . | . . . Special Melee Weapon . | . . . Unidentified Prototypes 2 | . . 2 Parts Lost 12 | . . 12 Power 2 | . . 2 Propulsion 4 | . . 4 Utility 2 | . . 2 Weapon 4 | . . 4 Highest Loss Streak 4 | . . 4 To Critical Strikes . | . . . Average Slot Usage (%) 91 | . 96 81 Engine 12 | . 14 10 Treads 25 | . 28 20 Device 10 | . 11 9 Storage 12 | . 14 11 Protection 2 | . . 8 Energy Gun 12 | . 14 10 Energy Cannon 1 | . . 3 Ballistic Gun 11 | . 14 5 Naked Turns . | . . . Heaviest Build 97 | 14 90 97 Greatest Support 60 | 40 40 60 Greatest Overweight (x) 31 | . 2 31 Average Overweight (x) 1 | . 1 2 Largest Inventory Capacity 25 | 8 25 25 Average Capacity 22 | 7 22 25 Most Carried 9 | 5 6 9 Average Carried 4 | 2 3 6 Final Capacity 25 | 8 25 25 Final Carried 6 | 2 6 6 Class Distribution -------------------- 100% | Mutant Dominant Class ---------------- Mutant | -10/Materials Mutant | -9/Materials Resources | -11 -10 -9 ----------- Run | Yrd Mat Mat Matter Collected 631 | 284 169 178 Remotely . | . . . Salvage Created 865 | 84 283 498 Parts 75 | 2 19 54 Haulers Intercepted 1 | . . 1 Recyclers Shooed . | . . . Parts Field Recycled . | . . . Retrieved Matter . | . . . Parts Self-Destructed . | . . . Prevented . | . . . Kills | -11 -10 -9 ------- Run | Yrd Mat Mat Combat Hostiles Destroyed 24 | . 7 17 Guns 16 | . 7 9 Cannons 8 | . . 8 Classes Destroyed 9 | 2 4 3 Worker 2 | . 2 . Builder 2 | . . 2 Tunneler 1 | 1 . . Hauler 1 | . . 1 Recycler 1 | 1 . . Watcher 4 | . 1 3 Swarmer 17 | . 2 15 Grunt 5 | . 5 . Sentry 2 | . . 2 Best Kill Streak 9 | 1 3 9 Combat Bots Only 9 | . 3 9 Max Kills in Single Turn 1 | 1 1 1 Gunslinging . | . . . Exploded . | . . . Melee . | . . . Uniques/NPCs Destroyed . | . . . Combat | -11 -10 -9 -------- Run | Yrd Mat Mat Hostile Shots Fired 265 | . 56 209 Missed 89 | . 22 67 Damage Taken 1759 | . 336 1423 Core 468 | . 61 407 Absorbed by Shields . | . . . Core Remaining (%) 87 | 100 75 . Volleys Fired 147 | 8 50 89 Largest 2 | 2 2 2 Hottest 116 | 70 70 116 Shots Fired 225 | 16 91 118 Gun 181 | 16 91 74 Cannon 44 | . . 44 Launcher . | . . . Special . | . . . Kinetic 94 | 8 50 36 Thermal 131 | 8 41 82 Explosive . | . . . Electromagnetic . | . . . Robot Hit Streak 8 | 8 4 7 Robot Miss Streak 4 | 3 3 4 Penetration Max . | . . . Secondary Targets 2 | . 2 . Max Gunslinging Chain 1 | . 1 . Shots Hit Robots 125 | 11 53 61 Core Hits 47 | 3 17 27 Critical Kills . | . . . Critical Parts Destroyed . | . . . Critical Strikes 2 | 1 . 1 Burn 2 | 1 . 1 Melee Attacks . | . . . Impact . | . . . Slashing . | . . . Piercing . | . . . Sneak Attacks . | . . . Combat Hostiles . | . . . Follow-up Attacks . | . . . Damage Inflicted 1758 | 138 654 966 Guns 1324 | 138 650 536 Cannons 416 | . . 416 Explosions . | . . . Melee . | . . . Ramming 18 | . 4 14 Kinetic 699 | 76 372 251 Thermal 1041 | 62 278 701 Explosive . | . . . Electromagnetic . | . . . Impact . | . . . Slashing . | . . . Piercing . | . . . Highest Corruption . | . . . Average Corruption . | . . . Corruption Purged . | . . . Corruption Blocked . | . . . Overload Shots . | . . . Overflow Damage . | . . . Projectiles . | . . . Explosions . | . . . Melee . | . . . Knockbacks . | . . . Impact . | . . . Kinetic . | . . . Secondary . | . . . Self-Inflicted Damage . | . . . Shots . | . . . Rammed 5 | . 2 3 Targets Rammed 6 | . 3 3 Kicked . | . . . Crushed 1 | . 1 . Highest Temperature 147 | . 147 99 Average Temperature 34 | . 52 19 Received Heat Transfer 384 | . 114 270 Siege Activations . | . . . Robots Corrupted . | . . . Combat Hostiles . | . . . Parts Fried . | . . . Impact Corruptions . | . . . Robots Melted . | . . . Combat Hostiles . | . . . Parts Melted 4 | 2 . 2 Heat Transferred 2812 | 259 814 1739 Parts Sabotaged . | . . . Parts Stolen . | . . . Parts Stripped . | . . . Power Chain Reactions . | . . . Alert | -11 -10 -9 ------- Run | Yrd Mat Mat Peak Influence 251 | 10 106 251 Initial 6 | . 6 . Average 40 | 2 21 82 Maximum Alert Level 1 | . . 1 Low Security (%) 94 | 100 100 84 Level 1 5 | . . 15 Level 2 . | . . . Level 3 . | . . . Level 4 . | . . . Level 5 . | . . . High Security . | . . . Max Security . | . . . Squads Dispatched 2 | . 2 . Investigation 1 | . 1 . Extermination . | . . . Reinforcement 1 | . 1 . Assault . | . . . Garrison . | . . . Intercept . | . . . Searches Triggered . | . . . Construction Impeded . | . . . Haulers Reinforced . | . . . Active Scanning Responses . | . . . Cargo Convoy Interrupts . | . . . Stealth | -11 -10 -9 --------- Run | Yrd Mat Mat Distress Signals 7 | . 1 6 Communications Jammed . | . . . Distress Signals . | . . . Times Spotted 36 | . 12 24 Peak Tracking Total 8 | . 4 8 Tactical Retreats . | . . . Traps | -11 -10 -9 ------- Run | Yrd Mat Mat Traps Triggered . | . . . Indirectly . | . . . Trap Hack Attempts . | . . . Triggered . | . . . Disarmed 6 | . 6 . Reprogrammed . | . . . Reused . | . . . Traps Extracted . | . . . Installed . | . . . Triggered . | . . . Machines | -11 -10 -9 ---------- Run | Yrd Mat Mat Machines Disabled 1 | . . 1 Max in Single Turn 1 | . . 1 Machines Repaired . | . . . Machines Dismantled . | . . . Machines Sabotaged . | . . . Overloaded Fab Kills . | . . . Hacking | -11 -10 -9 --------- Run | Yrd Mat Mat Machines Accessed 4 | . 3 1 Terminals 4 | . 3 1 Fabricators . | . . . Repair Stations . | . . . Recycling Units . | . . . Scanalyzers . | . . . Garrison Access . | . . . Total Hacks 9 | . 7 2 Successful 5 | . 4 1 Failed 4 | . 3 1 Catastrophic 2 | . 2 . Database Lockouts . | . . . Manual 8 | . 6 2 Terminals 9 | . 7 2 Fabricators . | . . . Repair Stations . | . . . Recycling Units . | . . . Scanalyzers . | . . . Garrison Access . | . . . Terminal Hacks 5 | . 4 1 Alert Level 1 | . 1 . Locate Traps 1 | . 1 . Disarm Traps 2 | . 2 . Zone Layout 1 | . . 1 Fabricator Hacks . | . . . Repair Station Hacks . | . . . Recycling Unit Hacks . | . . . Scanalyzer . | . . . Garrison Access Hacks . | . . . Unauthorized Hacks . | . . . Terminals . | . . . Fabricators . | . . . Repair Stations . | . . . Recycling Units . | . . . Scanalyzers . | . . . Garrison Access . | . . . Data Cores Recovered . | . . . Used . | . . . Hacking Detections 4 | . 3 1 Full Trace Events 1 | . 1 . Feedback Events . | . . . Feedback Blocked . | . . . Robot Schematics Acquired . | . . . Robots Built . | . . . Authchips . | . . . Time . | . . . Total Robot Build Rating . | . . . Part Schematics Acquired . | . . . Parts Built . | . . . Authchips . | . . . Time . | . . . Total Part Build Rating . | . . . Parts Repaired . | . . . Time . | . . . Parts Recycled . | . . . Recycled Matter . | . . . Retrieved Matter . | . . . Retrieved Components . | . . . Parts Scanalyzed . | . . . Part Schematics Acquired . | . . . Parts Damaged . | . . . Bothacking | -11 -10 -9 ------------ Run | Yrd Mat Mat Used RIF Installer . | . . . Robots Hacked . | . . . Non-combat . | . . . Combat . | . . . Robot Hacks Applied . | . . . Relay Couplers Released . | . . . Fabnet Peak Effective % . | . . . Robots Rewired . | . . . Allies Hacked . | . . . Hacks Repelled . | . . . Allies | -11 -10 -9 -------- Run | Yrd Mat Mat Total Allies . | . . . Largest Group . | . . . Highest-Rated Group . | . . . Highest-Rated Ally . | . . . Total Orders . | . . . Ally Attacks . | . . . Total Damage . | . . . Kills . | . . . Allies Corrupted . | . . . Allies Melted . | . . . Intel | -11 -10 -9 ------- Run | Yrd Mat Mat Robot Analysis Total . | . . . Derelict Logs Recovered . | . . . Drone Launches . | . . . Drone Recoveries . | . . . Exploration | -11 -10 -9 ------------- Run | Yrd Mat Mat Turns Passed 2438 | 141 1494 803 Spaces Moved 658 | 72 416 170 Core 19 | 14 . 5 Treads 639 | 58 416 165 Legs . | . . . Wheels . | . . . Hover . | . . . Flight . | . . . Fastest Speed 50 | 50 160 240 Average Speed 279 | 138 281 334 Slowest Speed 1600 | 160 320 1600 Overloaded Moves . | . . . Propulsion Burnouts . | . . . Robots Hopped . | . . . Cave-ins Triggered . | . . . Exploration Rate (%) 27 | 4 57 20 Regions Visited 2 Branch Regions . Pre-discovered Areas . | . . . Known Exits Taken . | . . . Unknown Exits Taken 2 | 1 1 . Scrap Searched . | . . . Spaces Dug . | . . . Terrain Destroyed . | . . . Melee . | . . . Projectile . | . . . AOE . | . . . Terrain Rammed . | . . . Walls Destroyed . | . . . Machines Disabled . | . . . Actions | -11 -10 -9 --------- Run | Yrd Mat Mat Total 1021 | 98 644 279 Wait 161 | . 161 . Move 656 | 71 415 170 Hop . | . . . Pick Up 26 | 10 8 8 Fast Attach . | . . . Attach 15 | 6 1 8 Detach . | . . . Swap 5 | 1 3 1 Drop 5 | 2 3 . Fire 147 | 8 50 89 Melee . | . . . Ram . | . . . Kick . | . . . Crush 6 | . 3 3 Escape Stasis . | . . . Rewire . | . . . Trap . | . . . Miscellaneous . | . . . Route ------- -11/Scrapyard -10/Materials (discovered 3 exits: *Mat / [*Min x2]) -9/Materials History --------- Turn | Location | Event 5 | -11/Scrapyard | Discovered new exit (range 15) 142 | -11/Scrapyard | Entered Materials 301 | -10/Materials | Build established: Mutant 494 | -10/Materials | Discovered new exit (range 16) 805 | -10/Materials | Discovered new exit (range 8) 1498 | -10/Materials | Discovered new exit (range 15) 1636 | -10/Materials | Entered another Materials area 1636 | -9/Materials | Evolved 2 slots: Propulsion x1, Utility x1 2299 | -9/Materials | Lost 4 parts (2n1u1w) 2339 | -9/Materials | Destroyed 9 combat bots 2356 | -9/Materials | Core integrity fell below 50% 2377 | -9/Materials | Lost 4 parts (1p1n1u1w) 2416 | -9/Materials | Core integrity fell below 20% 2439 | -9/Materials | Destroyed by Y-45 Defender with Beam Rifle Last Messages --------------- 02274_ Identified Imp. Medium Laser. 02275_ Y-45 Defender destroyed. 02281_ S-10 Pest destroyed. 02316_ Terminal disabled. 02316_ Lgt. Treads destroyed. 02318_ S-10 Pest destroyed. 02326_ Beam Cannon destroyed. 02344_ Hvy. Ion Engine destroyed. 02346_ Imp. Heat Sink destroyed. 02362_ S-10 Pest destroyed. 02364_ K-01 Serf collects debris. 02408_ Acquired Lgt. Treads. 02409_ K-01 Serf collects debris. 02410_ Acquired 11 matter. 02412_ K-01 Serf collects debris. 02415_ Slammed into K-01 Serf. 02424_ Lgt. Ion Engine destroyed. 02424_ Acquired Beam Rifle. 02427_ Imp. Medium Laser destroyed. 02433_ Critical hit (Burn: +37). Map ----- +----------------------------------------------------+ | ?????????????????????????????????????????????????? | | ?????????????????????????????????????????????????? | | ?????????????????????????????????????????????????? | | ?????????????????????????????????????????????????? | | ?????????????????????????????????????????????????? | | ?????????????????????????????????????????????????? | | ?????????????????????????????????????????????????? | | ?????????????????????????????????????????????????? | | ?????????????????????????????????????????????????? | | ?????????????????????????????????????????????????? | | ?????????????????????????????????????????????????? | | ?????????????????????????????????????????????????? | | ?????????????????????????????????????????????????? | | ?????????????????????????????????????????????????? | | ?????????????????????????????????????????????????? | | ?????????????????????????????????????????????????? | | #######??????????????????????????????????????????? | | #??????????????????????????????????????????? | | #??????????????????????????????????????????? | | #??????????????????????????????????????????? | | #??????????????????????????????????????????? | | #??????????????#####???????????????????????? | | ????????????????#"""#???????????????????????? | | ##+###################" "#####;###= #???????????? | | [!% [=%% =%=* [==%[[[* #???????????? | | ! %= % = =@! %*%Y%%%% + ????????? | | ! !| = !=%![ = ==*=% w#???????????? | | ##+####################+######;### k#???????????? | | #??????????????????????????????????????????? | | #??????????????????????????????????????????? | | #??????????????????????????????????????????? | | #??????????????????????????????????????????? | | #??????????????????????????????????????????? | | #??????????????????????????????????????????? | | #######??????????????????????????????????????????? | | ?????????????????????????????????????????????????? | | ?????????????????????????????????????????????????? | | ?????????????????????????????????????????????????? | | ?????????????????????????????????????????????????? | | ?????????????????????????????????????????????????? | | ?????????????????????????????????????????????????? | | ?????????????????????????????????????????????????? | | | | | | | | | | | | | | | | | +----------------------------------------------------+ Best States ------------- Heat Dissipation 42 Energy Generation 14 Energy Capacity 280 Matter Stores 300 Matter Capacity 300 Sight Range 16 Terrain Scan Density 10 Armor Coverage 150 Evasion (%) 50 Recoil Reduction 3 Item Schematics ----------------- None Robot Schematics ------------------ None Fabricated ------------ Nothing Alien Tech Used ----------------- None Achievements -------------- None Challenges ------------ None Game ------ Seed GaussCarbideHumpback Manual? 0 Play Time 00:14:06 Cumulative 8.3 hours Start 2024.04.23 @ 20:47:23 End 2024.04.23 @ 20:59:45 Sessions 1 Manual Loads 0 Difficulty Rogue Special Mode None Game No. 20 Rogue 20 Adventurer 0 Explorer 0 Win Type - Total 0 Types 0/0/0/0/0/0/0/0/0 Lore% 9 Gallery% 14 Achievement% 13 Wizard Run 0 Options --------- Layout 1 ASCII 0 Keyboard 0 Movement Vi Keybinds 0 Fullscreen 1 Font 24/Smallcaps Map View 50x35 Zoom Use 0% Tactical HUD 1 Map Filters NONE Filters NONE Steam 1 RUN: a091c11e-64c4-4cca-9b25-6423acb08627